bitfinex-derivatives/quotes_ETHF0:USTF0_20241231
["timestamp","ask_amount","ask_price","bid_price","bid_amount"]
[1735664519554,0.29404,3407.1,3407.0,0.29404]
[1735664520462,3.50183,3407.3,3407.2,0.29403]
[1735664520659,3.2078,3407.3,3407.2,0.29403]
[1735664521157,1.3183,3407.7,3407.6,0.29399]
[1735664522548,11.22386183,3408.3,3407.3,2.35203002]
[1735664522756,1.3055,3408.2,3407.5,3.2078]
[1735664523063,0.29397,3407.9,3407.8,0.29397]
[1735664523761,0.29396,3408.0,3407.8,0.29397]
[1735664524161,1.3055,3408.2,3407.6,0.4252]
[1735664524354,0.294,3407.5,3407.0,11.8306403]
[1735664524651,0.29403,3407.1,3407.0,4.61071028]
[1735664525259,0.29403,3407.1,3406.5,1.6322]
[1735664525562,4.5193,3407.4,3407.0,0.29404]
[1735664525860,0.29403,3407.2,3407.0,0.29404]
[1735664526055,0.29406,3406.8,3406.7,0.29406]
[1735664526259,0.29408,3406.6,3406.4,0.29409]
[1735664526648,0.2941,3406.4,3406.3,0.2941]
[1735664529162,0.8831,3406.6,3406.0,3.2078]
[1735664529460,0.29415,3405.9,3405.8,0.29414]
[1735664529654,0.29414,3405.9,3405.8,0.29414]
[1735664530362,0.73522,3406.5,3405.5,6.44113002]
[1735664530562,0.29412,3406.2,3406.1,0.29412]
[1735664530764,0.29411,3406.2,3406.1,0.29412]
[1735664531457,0.29414,3406.0,3405.9,0.29413]
[1735664531657,0.29416,3405.7,3405.6,0.29416]
[1735664531852,0.29416,3405.6,3405.5,0.4474]
[1735664532056,0.4373,3405.6,3404.9,4.0659]
[1735664532258,0.29422,3405.0,3404.9,4.36012]
[1735664532557,0.29421,3405.1,3405.0,0.29421]
[1735664532859,0.4534,3405.5,3404.9,3.632]
[1735664533460,0.74758,3405.5,3404.9,3.632]
[1735664533663,0.74758,3405.5,3405.4,0.29418]
[1735664533963,0.4534,3405.5,3405.4,0.29418]
[1735664535054,0.4534,3405.5,3404.9,3.632]
[1735664535365,0.74758,3405.5,3405.3,0.29418]
[1735664535560,0.74758,3405.5,3404.9,3.632]
[1735664535764,0.4534,3405.5,3405.4,0.29418]
[1735664536563,0.74758,3405.5,3405.3,0.29418]
[1735664537867,0.4534,3405.5,3405.4,0.29418]
[1735664538069,0.4534,3405.5,3404.9,3.632]
[1735664538370,0.29418,3405.4,3405.0,0.29421]
[1735664538559,0.29419,3405.3,3405.1,0.2942]
[1735664538761,0.74757,3405.5,3405.3,0.29419]
[1735664539262,0.4534,3405.5,3404.9,3.632]
[1735664539661,0.29421,3405.1,3404.9,3.92622]
[1735664540057,0.4534,3405.5,3404.8,0.29423]
[1735664540266,0.29423,3404.9,3404.7,0.29424]
[1735664540472,0.29423,3404.9,3404.8,0.29423]
[1735664541169,0.29422,3405.0,3404.9,0.29422]
[1735664541566,0.29423,3404.9,3404.8,0.29423]
[1735664542163,0.29424,3404.8,3404.7,0.29424]
[1735664542359,3.94331,3405.2,3404.6,0.74694]
[1735664542360,0.29424,3404.7,3404.6,0.74694]
[1735664542569,3.94331,3405.2,3404.7,0.29423]
[1735664542570,0.29424,3404.8,3404.7,0.29423]
[1735664543165,0.29421,3405.1,3405.0,0.29421]
[1735664544065,3.2078,3405.2,3405.1,0.29421]
[1735664544865,3.502,3405.2,3405.1,0.29421]
[1735664545062,0.4534,3405.5,3405.4,0.29418]
[1735664545263,0.74757,3405.5,3405.4,0.29418]
[1735664545459,0.4534,3405.5,3405.4,0.29418]
[1735664545667,0.4216,3406.1,3405.3,3.2078]
[1735664545873,0.29409,3406.5,3406.4,0.29409]
[1735664546064,0.29411,3406.3,3406.2,0.29411]
[1735664546271,3.2078,3406.6,3405.9,0.4568]
[1735664546471,0.29412,3406.2,3406.1,0.29412]
[1735664546674,0.29411,3406.3,3406.2,0.29411]
[1735664547767,3.2078,3406.6,3405.9,0.4568]
[1735664547967,0.73523,3406.5,3405.7,3.2078]
[1735664548164,0.29413,3406.1,3406.0,0.29413]
[1735664548562,0.73523,3406.5,3405.7,3.2078]
[1735664548766,0.29412,3406.2,3406.1,0.29412]
[1735664549070,0.29412,3406.2,3406.0,0.29412]
[1735664549773,0.29413,3406.0,3405.9,0.29413]
[1735664550675,0.4479,3406.1,3405.6,0.4331]
[1735664550876,3.6557,3406.1,3405.6,0.4331]
[1735664551067,1.60814,3406.0,3405.4,0.75148]
[1735664551269,0.29415,3405.7,3405.6,0.29416]
[1735664551674,0.29417,3405.6,3405.5,0.29417]
[1735664551872,0.29418,3405.5,3405.4,0.29418]
[1735664552175,0.29415,3405.8,3405.7,0.29415]
[1735664552374,0.29416,3405.7,3405.6,0.29416]
[1735664552569,0.74204,3405.9,3405.8,0.29415]
[1735664552875,0.4479,3405.9,3405.8,0.29415]
[1735664553075,0.8728,3406.0,3405.9,0.29414]
[1735664553275,3.2078,3406.6,3405.8,2.35203002]
[1735664553580,3.2078,3406.6,3406.3,0.29409]
[1735664553581,0.2941,3406.4,3406.3,0.29409]
[1735664553971,3.2078,3406.6,3405.9,0.425]
[1735664554271,0.29411,3406.2,3406.1,0.29412]
[1735664554473,3.2078,3406.6,3405.9,0.425]
[1735664554671,0.29409,3406.5,3406.4,0.29409]
[1735664554868,3.2078,3406.6,3405.9,0.425]
[1735664555073,0.8776,3406.8,3406.7,0.29407]
[1735664555668,3.50185,3407.0,3406.4,0.73523]
[1735664555873,3.50185,3407.0,3406.9,0.29405]
[1735664555874,0.29405,3407.0,3406.9,0.29405]
[1735664556276,0.29406,3406.9,3406.8,0.29406]
[1735664557170,0.8661,3407.3,3406.3,0.4365]
[1735664557171,0.29406,3406.8,3406.7,0.29406]
[1735664557370,2.35203002,3407.1,3406.3,0.4365]
[1735664557673,0.73515,3406.9,3406.3,0.4365]
[1735664557977,0.2941,3406.4,3406.3,0.2941]
[1735664558184,2.35203002,3406.5,3405.9,0.4261]
[1735664558471,0.29417,3405.6,3405.5,0.29416]
[1735664559074,6.29512002,3406.2,3405.4,3.6339]
[1735664559374,0.29415,3405.8,3405.7,0.29415]
[1735664560377,0.29416,3405.7,3405.6,0.29416]
[1735664560877,0.29417,3405.6,3405.5,0.29417]
[1735664561771,0.73531,3406.1,3405.4,0.29417]
[1735664561772,0.29417,3405.5,3405.4,0.29417]
[1735664561977,0.4614,3405.5,3405.1,0.4595]
[1735664562169,0.4614,3405.5,3404.4,1.47]
[1735664562170,3.2078,3405.4,3404.7,3.2078]
[1735664562371,2.35203002,3405.3,3404.6,0.4225]
[1735664562575,0.29424,3404.7,3404.6,0.4225]
[1735664562771,0.29425,3404.6,3404.5,0.29425]
[1735664562977,0.29426,3404.5,3404.3,3.50207]
[1735664563175,0.29426,3404.5,3404.3,3.2078]
[1735664563477,0.29426,3404.5,3404.3,3.50207]
[1735664563779,0.29426,3404.5,3404.4,0.29427]
[1735664563981,0.4441,3404.9,3404.4,0.29427]
[1735664564177,0.29426,3404.6,3404.4,0.29427]
[1735664564673,0.29426,3404.5,3404.4,0.29427]
[1735664565272,0.4441,3404.9,3404.3,3.2078]
[1735664565579,0.29427,3404.4,3404.3,3.2078]
[1735664565781,0.2943,3404.1,3403.9,0.2943]
[1735664566168,0.2943,3404.0,3403.8,0.29431]
[1735664566373,0.29432,3403.8,3403.7,0.29433]
[1735664566576,0.29431,3403.9,3403.7,0.29433]
[1735664566774,3.2078,3404.1,3403.8,0.29432]
[1735664566775,0.2943,3404.0,3403.8,0.29432]
[1735664566979,3.5021,3404.1,3403.9,0.2943]
[1735664567173,0.4335,3404.2,3403.7,3.2078]
[1735664567374,0.72779,3404.2,3404.0,0.2943]
[1735664567674,0.29429,3404.1,3404.0,0.2943]
[1735664567978,0.29429,3404.1,3403.9,0.2943]
[1735664569181,0.4335,3404.2,3403.6,0.4563]
[1735664569381,0.72779,3404.2,3404.0,0.2943]
[1735664569879,0.29429,3404.1,3404.0,0.2943]
[1735664570276,0.29429,3404.1,3403.9,0.29431]
[1735664570579,0.2943,3404.1,3403.9,0.29431]
[1735664571575,0.4335,3404.2,3403.6,0.4563]
[1735664571775,0.4335,3404.2,3403.9,0.29431]
[1735664571776,0.2943,3404.1,3403.9,0.29431]
[1735664572381,0.2943,3404.0,3403.8,0.29431]
[1735664572580,0.2943,3404.0,3403.9,0.29431]
[1735664572895,0.2943,3404.0,3403.8,0.29431]
[1735664573087,0.2943,3404.0,3403.6,0.4563]
[1735664573383,0.2943,3404.0,3403.8,0.29431]
[1735664573574,0.2943,3404.0,3403.6,0.4563]
[1735664573773,0.2943,3404.0,3403.9,0.29431]
[1735664574077,0.2943,3404.1,3403.9,0.29431]
[1735664574279,0.4335,3404.2,3403.9,0.29431]
[1735664574580,0.2943,3404.1,3403.9,0.29431]
[1735664575074,3.2078,3404.5,3403.8,3.2078]
[1735664575276,3.2078,3404.5,3404.4,0.29427]
[1735664575674,3.50206,3404.5,3404.4,0.29427]
[1735664576277,3.2078,3404.5,3404.4,0.29427]
[1735664576482,0.442,3405.2,3405.1,0.29421]
[1735664576678,0.4537,3405.9,3405.7,0.29415]
[1735664576983,0.442,3406.0,3405.4,0.73546]
[1735664577287,8.01606183,3406.1,3406.0,0.29413]
[1735664577481,0.4519,3406.3,3406.2,0.29411]
[1735664577776,8.75112183,3407.3,3405.5,4.0574]
[1735664577777,3.2078,3406.8,3406.1,3.2078]
[1735664577982,0.29406,3406.8,3406.6,0.29407]
[1735664578170,0.4601,3407.0,3406.1,3.2078]
[1735664578376,0.29407,3406.7,3406.1,3.2078]
[1735664578579,0.29407,3406.7,3406.4,0.29409]
[1735664578781,0.29407,3406.7,3406.5,0.29408]
[1735664579982,0.29405,3406.9,3406.1,3.94311]
[1735664580181,0.4601,3407.0,3406.5,3.2078]
[1735664580684,2.78313002,3407.5,3406.5,3.2078]
[1735664580885,0.29403,3407.2,3406.9,0.29405]
[1735664581782,2.35203002,3407.2,3406.5,3.2078]
[1735664581976,0.29408,3406.6,3406.3,0.2941]
[1735664582180,3.50185,3406.9,3406.6,0.29407]
[1735664582488,0.29406,3406.8,3406.5,0.29408]
[1735664583080,0.29407,3406.7,3406.1,4.4148]
[1735664583281,0.29406,3406.8,3406.5,0.29408]
[1735664583485,0.29407,3406.8,3406.5,0.29408]
[1735664583681,0.29407,3406.7,3406.5,0.29408]
[1735664583886,2.35203002,3407.2,3406.5,0.29408]
[1735664584088,3.2078,3407.3,3406.3,2.35203002]
[1735664584281,3.2078,3407.3,3407.1,0.29403]
[1735664584690,3.50182,3407.3,3407.1,0.29403]
[1735664584888,3.2078,3407.3,3407.1,0.29403]
[1735664585185,3.2078,3407.3,3406.7,0.429]
[1735664585385,3.2078,3407.3,3407.2,0.29403]
[1735664586279,0.4549,3407.6,3407.5,0.294]
[1735664586486,3.2078,3407.9,3407.2,2.35203002]
[1735664586683,3.50177,3407.9,3407.6,0.29398]
[1735664586884,11.22386183,3407.9,3407.7,0.29398]
[1735664587079,11.22386183,3407.9,3407.2,2.35203002]
[1735664587285,0.29397,3407.8,3407.6,0.29399]
[1735664587485,11.51783183,3407.9,3407.2,0.29403]
[1735664587784,11.51783183,3407.9,3407.6,0.29399]
[1735664587984,3.2078,3407.9,3407.7,0.29398]
[1735664588181,3.50177,3407.9,3407.6,0.29398]
[1735664588387,3.2078,3407.9,3407.8,0.29397]
[1735664588789,3.50177,3407.9,3407.3,0.29402]
[1735664588985,3.50177,3407.9,3407.6,0.29398]
[1735664589188,3.50177,3407.9,3407.7,0.29398]
[1735664589386,3.2078,3407.9,3407.7,0.29398]
[1735664589585,3.2078,3407.9,3407.5,0.294]
[1735664589784,0.29399,3407.7,3407.5,0.294]
[1735664589991,0.29398,3407.8,3407.6,0.29399]
[1735664590194,3.2078,3407.9,3407.8,0.29397]
[1735664591887,0.29397,3407.8,3407.7,0.29398]
[1735664592288,3.2078,3407.9,3407.7,0.29398]
[1735664592590,3.50177,3407.9,3407.7,0.29398]
[1735664592792,0.29397,3407.8,3407.7,0.29398]
[1735664592993,3.50177,3407.9,3407.7,0.29398]
[1735664593391,0.29399,3407.6,3407.5,1.1993]
[1735664593595,0.29399,3407.6,3407.5,0.294]
[1735664593900,0.29398,3407.7,3407.5,0.29399]
[1735664594493,0.29397,3407.8,3407.6,0.29398]
[1735664594790,0.29399,3407.7,3407.6,0.29399]
[1735664595895,0.29399,3407.6,3407.5,0.29399]
[1735664596695,3.2078,3407.9,3407.0,3.6483]
[1735664596895,0.29403,3407.1,3407.0,3.6483]
[1735664597091,0.29406,3406.9,3406.8,0.29406]
[1735664597291,0.462,3407.4,3406.6,3.2078]
[1735664597494,0.29406,3406.9,3406.8,0.29405]
[1735664599798,0.29405,3407.0,3406.9,0.29404]
[1735664600699,1.19704,3407.4,3406.5,0.4213]
[1735664600898,0.29408,3406.7,3406.6,0.29407]
[1735664601099,0.29407,3406.8,3406.7,0.29406]
[1735664601393,0.29406,3406.9,3406.8,0.29405]
[1735664601595,0.462,3407.4,3406.7,0.73516]
[1735664601796,0.462,3407.4,3406.8,1.206]
[1735664601999,3.2078,3407.5,3407.4,0.29401]
[1735664602194,0.8617,3407.8,3407.4,0.29401]
[1735664602495,8.01606183,3409.3,3407.7,3.2078]
[1735664602695,0.4292,3409.2,3408.9,0.29388]
[1735664603002,8.01606183,3409.3,3408.9,0.29388]
[1735664603395,1.16369,3409.9,3409.2,0.29385]
[1735664603598,1.16369,3409.9,3409.0,3.2078]
[1735664603796,3.94233,3409.7,3408.7,2.35203002]
[1735664603995,3.94233,3409.7,3409.0,0.29386]
[1735664604499,3.2078,3409.7,3408.7,2.35203002]
[1735664604698,0.29382,3409.6,3409.3,0.29384]
[1735664604892,3.2078,3409.7,3409.3,2.35203002]
[1735664605097,0.4292,3409.9,3409.3,2.35203002]
[1735664605705,0.29383,3409.5,3409.3,2.64587002]
[1735664606198,0.29383,3409.5,3409.3,0.29384]
[1735664606396,0.4292,3409.9,3409.1,3.2078]
[1735664606598,0.29381,3409.7,3409.2,0.29385]
[1735664606799,3.2078,3410.1,3409.4,2.81452015]
[1735664606998,0.29379,3410.0,3409.8,0.2938]
[1735664607396,0.29379,3410.0,3409.4,2.81452015]
[1735664607397,0.2938,3409.8,3409.5,0.29382]
[1735664607602,3.2078,3410.1,3409.3,1.639]
[1735664607807,3.2078,3410.1,3409.5,0.29382]
[1735664607997,0.29381,3409.7,3409.3,1.639]
[1735664608199,3.2078,3410.1,3409.3,1.639]
[1735664608399,0.2938,3409.8,3409.6,0.29381]
[1735664608703,0.2938,3409.9,3409.6,0.29381]
[1735664609003,0.2938,3409.9,3409.3,1.639]
[1735664609004,3.2078,3410.1,3409.8,2.81452015]
[1735664609400,3.50158,3410.1,3409.9,0.29379]
[1735664609607,3.50158,3410.1,3409.8,2.81452015]
[1735664609608,3.2078,3410.1,3409.8,2.81452015]
[1735664609904,3.2078,3410.1,3410.0,0.29378]
[1735664610303,0.29376,3410.3,3410.0,0.29378]
[1735664610906,3.2078,3410.5,3409.8,2.81452015]
[1735664611602,0.29377,3410.2,3409.9,0.29379]
[1735664612004,0.29376,3410.3,3410.0,0.29378]
[1735664612510,3.2078,3410.5,3409.8,2.81452015]
[1735664612711,3.50155,3410.5,3410.2,0.29376]
[1735664613010,3.2078,3410.5,3410.0,0.29378]
[1735664613308,0.29376,3410.3,3410.0,0.29378]
[1735664613705,0.29376,3410.3,3410.1,0.29377]
[1735664614110,3.2078,3410.5,3409.8,2.81452015]
[1735664614310,3.50155,3410.5,3410.2,0.29376]
[1735664614802,3.2078,3410.5,3410.4,0.29375]
[1735664615011,4.8702,3411.0,3410.7,0.29372]
[1735664615203,0.29371,3410.9,3410.3,0.4248]
[1735664615508,0.29371,3410.9,3410.6,0.29373]
[1735664615710,4.5765,3411.0,3410.6,0.29373]
[1735664616007,0.29372,3410.8,3410.4,0.29375]
[1735664616207,4.5765,3411.0,3410.3,0.4248]
[1735664616403,0.29372,3410.8,3410.5,0.29374]
[1735664616813,0.29376,3410.4,3410.1,0.29377]
[1735664617109,3.2078,3410.6,3409.9,3.2078]
[1735664617320,3.2078,3410.6,3409.9,3.94228]
[1735664617708,3.50153,3410.6,3410.4,0.29375]
[1735664618204,3.50153,3410.6,3410.4,0.29374]
[1735664618409,0.29375,3410.4,3410.0,0.29378]
[1735664618710,0.29375,3410.4,3410.2,0.29376]
[1735664618910,0.29375,3410.4,3409.9,3.2078]
[1735664619211,3.2078,3410.6,3409.9,4.4128]
[1735664619507,4.5765,3411.0,3409.9,4.4128]
[1735664619710,0.29376,3410.3,3410.1,0.29377]
[1735664620004,0.29384,3409.4,3409.2,0.29384]
[1735664620308,3.94233,3409.8,3409.0,0.29387]
[1735664620507,3.2078,3409.3,3408.9,0.4613]
[1735664620706,3.2078,3409.3,3408.6,3.2078]
[1735664621009,0.29387,3409.0,3408.9,0.29388]
[1735664621309,0.4215,3409.2,3408.6,3.2078]
[1735664621507,3.2078,3409.3,3409.1,0.29386]
[1735664621810,0.29386,3409.1,3409.0,0.29387]
[1735664622501,3.2078,3409.3,3408.6,6.02232015]
[1735664622903,0.29387,3409.0,3408.9,0.29387]
[1735664623400,0.29387,3409.1,3409.0,0.29387]
[1735664623605,3.2078,3409.3,3408.6,6.02232015]
[1735664623806,0.29387,3409.0,3408.9,0.29387]
[1735664624006,0.29387,3409.1,3409.0,0.29386]
[1735664624207,3.2078,3409.3,3408.6,6.75709015]
[1735664624412,0.29386,3409.2,3409.1,0.29386]
[1735664624808,3.2078,3409.3,3408.6,6.75709015]
[1735664625008,3.50165,3409.3,3409.1,0.29386]
[1735664625209,3.50165,3409.3,3409.2,0.29385]
[1735664625616,0.29385,3409.2,3409.1,0.29386]
[1735664625913,3.50165,3409.3,3409.1,0.29386]
[1735664626217,3.2078,3409.3,3409.2,0.29385]
[1735664626709,3.2078,3409.7,3409.0,2.35426117]
[1735664626912,3.2078,3409.7,3409.6,0.29382]
[1735664627119,3.50161,3409.7,3409.6,0.29382]
[1735664627811,0.2938,3409.8,3409.7,0.2938]
[1735664628116,0.29381,3409.7,3409.6,0.29381]
[1735664628518,0.29381,3409.7,3409.5,0.29382]
[1735664628715,0.29382,3409.6,3409.5,0.29383]
[1735664629016,0.29381,3409.7,3409.1,0.73466]
[1735664629215,0.29381,3409.7,3409.6,0.29382]
[1735664629527,0.4215,3409.9,3409.3,2.35426117]
[1735664629711,0.4215,3409.9,3409.8,0.2938]
[1735664629907,0.4215,3409.9,3409.4,3.2078]
[1735664630212,0.2938,3409.8,3409.6,0.29381]
[1735664630409,0.2938,3409.8,3409.4,3.2078]
[1735664630410,0.4215,3409.9,3409.4,3.2078]
[1735664630812,0.2938,3409.8,3409.7,0.29381]
[1735664631407,0.4215,3409.9,3409.8,0.2938]
[1735664631613,3.94208,3410.9,3410.3,0.29375]
[1735664631817,0.29375,3410.4,3410.3,0.29375]
[1735664632315,0.29377,3410.2,3409.9,2.80316117]
[1735664632512,0.73434,3410.6,3409.9,0.4489]
[1735664632711,0.29377,3410.2,3410.1,0.29377]
[1735664633111,0.29377,3410.2,3410.0,0.29378]
[1735664633414,0.29377,3410.2,3410.1,0.29377]
[1735664633806,0.29376,3410.3,3410.1,0.29377]
[1735664634009,0.29377,3410.2,3410.1,0.29377]
[1735664634216,0.29376,3410.3,3410.1,0.29377]
[1735664634814,0.29377,3410.2,3410.0,0.29378]
[1735664635316,0.29377,3410.2,3410.1,0.29377]
[1735664635537,0.29377,3410.2,3410.0,0.29378]
[1735664635713,0.29377,3410.1,3410.0,0.29378]
[1735664635908,0.29377,3410.1,3409.9,2.80316117]
[1735664636109,0.29377,3410.1,3410.0,0.29378]
[1735664636316,0.29376,3410.3,3410.2,0.29376]
[1735664636623,0.29377,3410.2,3409.9,2.80316117]
[1735664636916,0.29378,3410.1,3409.9,3.09695117]
[1735664637119,0.29378,3410.1,3410.0,0.29378]
[1735664638114,0.73431,3410.7,3409.9,2.80316117]
[1735664638516,0.29374,3410.5,3410.4,0.29374]
[1735664638715,0.29376,3410.4,3410.2,2.64802117]
[1735664638914,0.29376,3410.4,3410.3,0.29376]
[1735664639518,0.29376,3410.3,3410.2,2.64802117]
[1735664639709,0.29376,3410.3,3410.2,2.35426117]
[1735664640315,0.29378,3410.1,3410.0,0.29378]
[1735664640522,5.2365,3410.8,3409.9,6.01096117]
[1735664640819,0.29376,3410.3,3410.2,0.29376]
[1735664641116,5.2365,3410.8,3409.9,6.01096117]
[1735664641117,0.29375,3410.4,3410.3,0.29375]
[1735664641519,0.29372,3410.7,3410.3,0.29376]
[1735664641725,0.29377,3410.2,3410.1,0.29377]
[1735664642014,0.29377,3410.2,3409.9,6.01096117]
[1735664642015,5.2365,3410.8,3409.9,6.01096117]
[1735664642221,0.29375,3410.4,3410.3,0.29375]
[1735664642816,0.29376,3410.3,3410.2,0.29376]
[1735664643217,5.2365,3410.8,3409.9,6.01096117]
[1735664643417,0.73433,3410.7,3409.9,6.01096117]
[1735664643721,5.2365,3410.8,3409.9,6.01096117]
[1735664644120,0.73435,3410.6,3409.9,6.01096117]
[1735664644323,0.29377,3410.2,3410.1,0.29377]
[1735664644616,0.29378,3410.1,3410.0,0.29378]
[1735664644818,3.9422,3410.4,3409.9,0.4489]
[1735664645124,0.29378,3410.0,3409.9,0.74269]
[1735664646422,0.29378,3410.0,3409.9,0.4489]
[1735664646722,0.29378,3410.0,3409.1,0.29385]
[1735664646723,0.29385,3409.2,3409.1,0.29385]
[1735664646918,3.2078,3409.5,3408.9,2.80186117]
[1735664647118,0.29385,3409.3,3409.2,0.29385]
[1735664647317,0.29385,3409.2,3409.1,0.29385]
[1735664647513,0.29385,3409.2,3408.9,2.80186117]
[1735664647916,0.29385,3409.2,3409.1,0.29386]
[1735664648518,0.29385,3409.3,3409.2,0.29385]
[1735664648716,3.2078,3409.5,3409.4,0.29383]
[1735664648920,1.4688,3410.4,3409.3,3.2078]
[1735664648921,8.00131689,3410.3,3409.3,3.2078]
[1735664649113,8.00131689,3410.3,3409.5,3.08883117]
[1735664649319,0.29378,3410.1,3410.0,0.29377]
[1735664649722,8.00131689,3410.3,3409.7,3.2078]
[1735664649923,0.73439,3410.4,3409.6,0.72551]
[1735664650138,0.29381,3409.7,3409.6,0.72551]
[1735664651230,0.32125997,3410.5,3409.6,0.4317]
[1735664651430,2.29465023,3410.6,3409.7,3.94233]
[1735664651625,0.29378,3410.1,3409.7,3.94233]
[1735664651832,0.29378,3410.1,3410.0,0.29378]
[1735664652030,2.29465023,3410.6,3410.1,0.29377]
[1735664652326,0.29375,3410.4,3410.3,0.29376]
[1735664652528,0.29375,3410.4,3410.3,0.29375]
[1735664653833,1.3255,3410.6,3409.8,3.08877117]
[1735664654033,1.3255,3410.6,3410.3,0.29376]
[1735664654338,0.29377,3410.2,3409.9,0.29379]
[1735664654530,0.29376,3410.3,3410.1,0.29377]
[1735664654838,0.29376,3410.3,3409.8,3.08877117]
[1735664655023,0.29376,3410.3,3410.2,0.29376]
[1735664655640,0.29375,3410.4,3410.3,0.29375]
[1735664655833,0.29375,3410.5,3410.4,0.29375]
[1735664656136,1.3255,3410.6,3410.0,0.73445]
[1735664656336,0.29374,3410.5,3410.4,0.29374]
[1735664656530,0.29372,3410.8,3410.1,6.76606117]
[1735664656731,11.20911689,3410.9,3410.3,0.29376]
[1735664656930,8.00131689,3410.9,3410.8,0.29371]
[1735664657239,0.29372,3410.8,3410.6,0.29373]
[1735664658038,0.29372,3410.7,3410.6,0.29373]
[1735664658336,3.2078,3410.9,3410.4,0.445]
[1735664658531,0.29374,3410.5,3410.4,0.73875]
[1735664659134,0.29374,3410.5,3409.9,0.73447]
[1735664659135,3.2078,3410.5,3409.6,1.204]
[1735664659338,0.29379,3409.9,3409.8,0.29379]
[1735664660328,0.4538,3410.3,3409.6,1.649]
[1735664660532,0.4538,3410.3,3409.8,2.35426117]
[1735664660728,0.74756,3410.3,3410.2,0.29377]
[1735664661128,0.4538,3410.3,3409.6,2.38354]
[1735664661534,0.4538,3410.3,3410.2,0.29377]
[1735664661737,3.94206,3411.0,3410.0,0.73446]
[1735664661936,0.29373,3410.7,3410.6,0.29373]
[1735664662441,8.00131689,3411.2,3411.1,0.29369]
[1735664662836,8.29499689,3411.2,3411.1,0.29369]
[1735664663032,8.00131689,3411.2,3410.8,3.2078]
[1735664663236,8.00131689,3411.2,3410.4,4.8503]
[1735664663441,0.29373,3410.7,3410.6,0.29373]
[1735664663636,11.8941169,3411.5,3410.3,0.29375]
[1735664663637,0.73428,3410.9,3410.3,0.29375]
[1735664663838,0.29377,3410.3,3410.2,0.29376]
[1735664664139,0.4574,3410.6,3410.1,1.6665]
[1735664664538,0.75114,3410.6,3410.5,0.29374]
[1735664664739,0.4574,3410.6,3410.5,0.29374]
[1735664664937,0.4574,3410.6,3410.1,4.8743]
[1735664665236,0.29376,3410.3,3410.2,0.29376]
[1735664665440,0.29375,3410.5,3410.3,0.29375]
[1735664665651,0.29375,3410.5,3410.4,0.29375]
[1735664667642,0.4574,3410.6,3410.1,4.4118]
[1735664667939,3.2078,3410.4,3409.8,0.4524]
[1735664668141,0.29378,3410.1,3409.8,0.4524]
[1735664668344,0.29378,3410.1,3410.0,0.29379]
[1735664668544,0.29379,3410.0,3409.9,0.29379]
[1735664668840,0.29378,3410.1,3410.0,0.29378]
[1735664669439,3.2078,3410.4,3409.8,0.4524]
[1735664669639,0.29378,3410.2,3410.1,0.29377]
[1735664669840,0.29377,3410.3,3410.2,0.29376]
[1735664670757,0.29378,3410.2,3410.1,0.29377]
[1735664672145,0.4574,3410.6,3409.8,0.4524]
[1735664672345,0.4574,3410.6,3410.0,3.2078]
[1735664672549,3.2078,3410.8,3410.7,0.29373]
[1735664672845,0.24091353,3411.1,3410.4,3.2078]
[1735664673044,0.29371,3410.9,3410.8,0.29371]
[1735664673945,3.2078,3411.2,3411.1,0.29369]
[1735664674143,3.2078,3411.2,3410.6,0.73434]
[1735664674144,1.60598,3411.3,3411.2,0.29368]
[1735664674643,1.3123,3411.3,3411.2,0.29368]
[1735664674836,1.60597,3411.3,3411.2,0.29368]
[1735664675236,0.29368,3411.2,3411.1,0.29369]
[1735664675642,1.3123,3411.3,3410.8,3.2078]
[1735664675843,1.3123,3411.3,3411.2,0.29368]
[1735664676039,0.8583,3411.3,3411.2,0.29368]
[1735664676449,0.29365,3411.6,3411.5,0.29366]
[1735664676744,13.50270216,3411.7,3411.6,0.29365]
[1735664676943,13.20906216,3411.7,3411.2,3.2078]
[1735664677150,0.29365,3411.6,3411.5,0.29365]
[1735664677347,0.29365,3411.6,3411.2,3.2078]
[1735664677543,9.43800216,3411.7,3411.5,0.29365]
[1735664677850,9.14436216,3411.7,3411.5,0.29365]
[1735664678054,8.03735486,3411.7,3411.5,0.29365]
[1735664678739,0.29366,3411.6,3411.4,0.29366]
[1735664678943,0.4352,3411.8,3411.2,3.2078]
[1735664679145,3.50147,3411.4,3411.2,0.29367]
[1735664679447,10.56206117,3411.4,3410.6,3.2078]
[1735664679656,3.50152,3410.8,3410.6,0.29373]
[1735664679947,0.29372,3410.8,3410.3,1.204]
[1735664680144,0.29373,3410.7,3410.6,0.29373]
[1735664680346,0.8937,3411.1,3410.3,1.204]
[1735664680654,0.29371,3410.9,3410.8,0.29371]
[1735664680949,0.2937,3411.0,3410.9,0.2937]
[1735664682152,0.8937,3411.1,3410.9,0.2937]
[1735664682343,0.2937,3411.0,3410.9,0.2937]
[1735664682644,0.8937,3411.1,3410.8,0.29371]
[1735664683048,0.2937,3411.0,3410.8,0.29371]
[1735664683450,0.29371,3410.9,3410.8,0.29371]
[1735664683647,0.8937,3411.1,3410.8,0.29371]
[1735664683848,0.2937,3411.0,3410.5,3.2078]
[1735664684447,0.4522,3411.1,3410.5,3.94215]
[1735664684756,0.2937,3411.0,3410.9,0.29371]
[1735664684953,0.29371,3410.9,3410.8,0.29371]
[1735664685348,0.4522,3411.1,3410.4,2.35426117]
[1735664685747,0.7459,3411.1,3411.0,0.2937]
[1735664685943,0.2937,3411.1,3411.0,0.2937]